bitfinex-derivatives/quotes_ETHF0:USTF0_20250308
["timestamp","ask_amount","ask_price","bid_price","bid_amount"]
[1741451088254,0.6531,2167.9,2167.2,1.46749248]
[1741451088462,0.6531,2167.9,2167.7,0.92289]
[1741451088960,0.6531,2167.9,2167.6,0.9229]
[1741451089263,0.6531,2167.9,2167.6,0.92292]
[1741451089652,0.6531,2167.9,2167.2,1.46749248]
[1741451089865,0.6531,2167.9,2167.6,0.92292]
[1741451090166,0.6531,2167.9,2167.7,0.92289]
[1741451090558,0.6531,2167.9,2167.2,1.46749248]
[1741451090864,0.6531,2167.9,2167.2,2.36802331]
[1741451091065,0.6531,2167.9,2167.5,0.92297]
[1741451091256,1.3137,2167.9,2167.5,0.92297]
[1741451091458,1.3137,2167.9,2167.5,0.92295]
[1741451092063,0.1037,2167.9,2167.2,2.30776]
[1741451092364,2.9261817,2168.0,2167.8,0.92283]
[1741451092560,2.42225784,2168.0,2167.8,0.92283]
[1741451093263,2.42225784,2168.0,2167.4,3.2078]
[1741451093667,2.42225784,2168.0,2167.8,0.92284]
[1741451093965,2.42225784,2168.0,2167.4,1.83128083]
[1741451094167,2.42225784,2168.0,2167.7,0.92286]
[1741451094368,2.42225784,2168.0,2167.4,1.83128083]
[1741451094562,2.42225784,2168.0,2167.7,0.92288]
[1741451094763,2.42225784,2168.0,2167.4,1.83128083]
[1741451094966,2.42225784,2168.0,2167.7,0.92288]
[1741451095471,2.42225784,2168.0,2167.5,0.92294]
[1741451095663,2.42225784,2168.0,2167.6,0.92293]
[1741451095973,2.42225784,2168.0,2167.5,0.92298]
[1741451096270,2.42225784,2168.0,2167.6,0.92293]
[1741451096866,3.2078,2167.7,2167.5,0.92295]
[1741451097069,3.2078,2167.7,2167.1,2.16333992]
[1741451097267,3.2078,2167.7,2167.1,2.63351743]
[1741451097466,3.2078,2167.7,2167.5,0.92296]
[1741451098873,3.2078,2167.7,2167.1,2.63351743]
[1741451099169,3.2078,2167.7,2167.6,0.92293]
[1741451099373,3.2078,2167.7,2167.1,2.63351743]
[1741451099575,3.2078,2167.7,2167.5,0.92297]
[1741451100072,3.2078,2167.7,2167.1,1.25710826]
[1741451100273,3.2078,2167.4,2167.1,1.39330751]
[1741451100574,1.2326,2167.3,2167.1,1.39329751]
[1741451101070,0.0506001,2167.3,2167.1,0.47017751]
[1741451101270,0.0506001,2167.3,2167.0,0.92315]
[1741451101572,0.0506001,2167.3,2166.7,0.1054]
[1741451101780,0.0506001,2167.3,2167.1,0.92314]
[1741451102066,0.0506001,2167.3,2166.7,0.1054]
[1741451102372,0.0506001,2167.3,2166.9,0.45415185]
[1741451102373,3.2078,2167.1,2166.9,0.45415185]
[1741451102569,3.2078,2167.1,2166.6,0.92333]
[1741451102767,3.2078,2167.1,2166.7,0.92328]
[1741451102967,3.2078,2167.1,2166.7,1.39087104]
[1741451103168,3.2078,2167.1,2166.7,0.9233]
[1741451103365,3.2078,2167.1,2166.4,12.34455509]
[1741451103565,3.2078,2167.1,2166.4,15.55235509]
[1741451103774,3.2078,2167.1,2166.9,0.92321]
[1741451104368,3.2078,2167.1,2166.4,15.55235509]
[1741451104570,3.2078,2167.4,2167.0,0.92315]
[1741451104867,3.2078,2167.4,2166.7,3.2078]
[1741451105074,3.2078,2167.4,2166.9,0.92323]
[1741451105277,3.2078,2167.4,2167.0,0.92318]
[1741451105572,3.2078,2167.4,2166.6,2.253]
[1741451105877,3.2078,2167.1,2166.4,11.85745172]
[1741451106073,3.2078,2166.8,2166.5,0.9234]
[1741451106879,3.2078,2166.8,2166.5,0.45550189]
[1741451107078,3.2078,2166.8,2166.4,12.78088172]
[1741451107377,3.2078,2166.8,2166.4,11.85745172]
[1741451107575,2.256,2166.7,2166.3,0.46602382]
[1741451107777,3.2078,2166.5,2166.0,0.92358]
[1741451108273,3.2078,2166.2,2166.0,1.38754797]
[1741451108478,3.2078,2166.5,2165.6,2.8706]
[1741451108678,3.2078,2166.5,2165.8,0.92368]
[1741451108875,0.6515,2166.4,2165.8,0.92368]
[1741451109074,2.258,2166.3,2165.8,1.39563688]
[1741451109275,3.2078,2166.2,2165.8,0.47195688]
[1741451109576,0.5957,2166.1,2165.5,3.2078]
[1741451109772,0.5957,2166.1,2165.7,0.92374]
[1741451109974,0.5957,2166.1,2165.5,4.1316]
[1741451110175,0.5957,2166.1,2165.5,3.67271137]
[1741451110372,3.2078,2165.9,2165.5,0.46491137]
[1741451110675,5.4718,2165.9,2165.3,0.9239]
[1741451110874,5.4718,2165.9,2165.1,3.2078]
[1741451111078,0.65842505,2165.8,2165.1,3.2078]
[1741451111275,3.2078,2165.3,2164.2,3.28818483]
[1741451111475,3.2078,2165.0,2164.3,0.92432]
[1741451111777,3.2078,2165.0,2164.2,3.67716117]
[1741451111978,0.3138,2165.2,2164.5,3.2078]
[1741451112277,0.3138,2165.2,2164.6,0.6442]
[1741451112776,5.49172505,2165.8,2165.0,3.2078]
[1741451112972,5.49172505,2165.8,2165.2,0.92394]
[1741451113169,3.2078,2165.5,2164.9,0.92408]
[1741451113372,3.2078,2165.5,2164.8,0.9241]
[1741451113581,2.278,2165.4,2164.9,0.92408]
[1741451113783,2.278,2165.4,2164.9,3.2078]
[1741451114076,3.2078,2165.5,2165.2,0.92392]
[1741451114477,3.2078,2165.5,2165.0,0.92402]
[1741451114680,3.2078,2165.5,2164.9,0.92406]
[1741451114982,3.2078,2165.5,2164.7,0.09239155]
[1741451115174,1.2339,2165.4,2164.8,0.9241]
[1741451115570,1.2339,2165.4,2164.7,0.09239155]
[1741451116375,1.2339,2165.4,2164.9,0.92405]
[1741451116578,1.2339,2165.4,2164.8,0.92411]
[1741451117080,3.2078,2165.2,2164.8,0.92411]
[1741451117275,3.2078,2165.2,2164.7,0.09239155]
[1741451117276,5.4778,2165.2,2164.7,0.09239155]
[1741451117478,3.2078,2164.9,2164.7,0.09239155]
[1741451117679,2.8769,2164.8,2163.7,12.70438772]
[1741451117982,3.2078,2164.6,2163.7,12.70438772]
[1741451118180,3.2078,2164.6,2164.0,3.2078]
[1741451118379,0.60712505,2164.7,2164.3,3.2078]
[1741451118583,0.00692505,2164.7,2164.6,0.92421]
[1741451118979,3.2078,2165.0,2164.3,3.2078]
[1741451119280,2.279,2165.1,2164.8,0.92411]
[1741451119481,2.279,2165.1,2164.8,0.9241]
[1741451120187,2.279,2165.1,2164.7,0.00692505]
[1741451120379,2.279,2165.1,2164.9,0.92407]
[1741451120573,0.60382505,2165.2,2164.9,0.92407]
[1741451120774,0.60382505,2165.2,2164.9,3.2078]
[1741451121385,0.60382505,2165.2,2165.1,0.924]
[1741451121571,2.7017418,2165.8,2165.0,2.31011]
[1741451121776,0.2773092,2165.8,2165.1,0.6571]
[1741451122179,0.2773092,2165.8,2165.3,0.92391]
[1741451122379,0.2773092,2165.8,2165.1,0.6571]
[1741451122584,0.2773092,2165.8,2165.1,3.8649]
[1741451122884,0.00692505,2165.7,2165.1,3.8649]
[1741451123078,0.00692505,2165.7,2165.6,0.92379]
[1741451123272,0.00692505,2165.7,2165.4,3.2078]
[1741451123583,0.00692505,2165.7,2165.4,0.92385]
[1741451124085,0.00692505,2165.7,2165.2,0.6747]
[1741451124279,0.00692505,2165.7,2165.3,0.9239]
[1741451124480,0.00692505,2165.7,2165.4,0.92385]
[1741451124780,0.00692505,2165.7,2165.4,0.92387]
[1741451124972,0.00692505,2165.7,2165.2,0.6747]
[1741451124973,0.00692505,2165.7,2165.2,1.59864]
[1741451125174,0.00692505,2165.7,2165.3,0.92391]
[1741451125371,0.00692505,2165.7,2165.2,0.6747]
[1741451125575,0.00692505,2165.7,2165.3,0.92388]
[1741451125780,0.00692505,2165.7,2165.4,0.92384]
[1741451126189,0.00692505,2165.7,2165.2,0.6747]
[1741451126884,0.00692505,2165.7,2165.2,1.59865]
[1741451127389,0.00692505,2165.7,2165.2,0.6747]
[1741451127683,3.2078,2165.6,2165.1,1.58107]
[1741451127876,3.8751,2165.6,2165.1,1.58107]
[1741451128281,3.8751,2165.6,2165.0,0.92401]
[1741451128472,3.2078,2165.3,2164.8,0.6879]
[1741451128671,3.2078,2165.3,2164.9,0.92408]
[1741451129486,3.2078,2165.3,2164.7,3.21472505]
[1741451129687,3.2078,2165.3,2164.7,0.00692505]
[1741451129984,3.2078,2165.3,2164.7,0.93107505]
[1741451130684,3.2078,2165.3,2164.8,0.92413]
[1741451130885,3.2078,2165.3,2164.9,0.92406]
[1741451131088,3.2078,2165.3,2164.8,0.92411]
[1741451131286,3.2078,2165.3,2164.9,0.92406]
[1741451132178,3.2078,2165.3,2164.7,4.13888505]
[1741451132379,3.2078,2165.3,2164.7,3.21472505]
[1741451132684,3.2078,2165.3,2164.7,4.13888505]
[1741451133385,3.2078,2165.3,2164.7,3.21472505]
[1741451133988,0.92402,2165.1,2164.7,3.21472505]
[1741451134288,0.6972,2165.2,2164.7,0.00692505]
[1741451134289,3.2078,2164.9,2164.7,0.00692505]
[1741451134477,0.6963,2164.8,2163.9,0.6917]
[1741451134679,3.2078,2164.4,2163.8,0.6515]
[1741451134882,2.9218,2164.3,2163.8,0.6515]
[1741451135285,3.2078,2164.1,2163.7,0.46552634]
[1741451135484,3.2078,2164.1,2163.3,1.3966]
[1741451135688,3.21472505,2164.1,2163.7,0.00692505]
[1741451137182,0.00692505,2164.1,2164.0,0.92447]
[1741451137780,2.258,2164.6,2164.4,0.92429]
[1741451137981,2.259,2164.8,2164.5,0.92425]
[1741451138177,2.259,2164.8,2164.2,3.2078]
[1741451138381,2.259,2164.8,2164.3,1.3612]
[1741451138584,3.2078,2164.7,2163.9,5.4668]
[1741451138782,3.2078,2164.4,2163.9,3.2078]
[1741451139188,0.00692505,2164.5,2163.9,3.2078]
[1741451139693,0.00692505,2164.5,2164.2,4.13215]
[1741451139990,0.00692505,2164.5,2164.1,0.9244]
[1741451140180,0.00692505,2164.5,2164.0,0.92445]
[1741451140385,0.00692505,2164.5,2163.9,3.2078]
[1741451140583,0.00692505,2164.5,2164.1,0.9244]
[1741451140783,0.00692505,2164.5,2164.2,0.92436]
[1741451141185,0.00692505,2164.5,2164.1,0.92442]
[1741451141485,0.00692505,2164.5,2163.9,3.2078]
[1741451141486,0.00692505,2164.5,2163.9,4.13229]
[1741451141884,0.00692505,2164.5,2163.9,3.2078]
[1741451142090,5.4768,2164.4,2163.7,0.00692505]
[1741451142489,5.4768,2164.4,2163.9,3.2078]
[1741451142690,5.4768,2164.4,2164.1,0.92439]
[1741451142990,5.4768,2164.4,2163.9,3.2078]
[1741451143187,6.1309,2164.4,2163.9,3.2078]
[1741451143390,6.1309,2164.4,2164.1,0.92439]
[1741451143594,6.1309,2164.4,2163.9,3.2078]
[1741451143792,6.1309,2164.4,2164.1,0.92441]
[1741451144089,6.1309,2164.4,2163.9,0.9245]
[1741451144391,6.1309,2164.4,2163.8,0.92454]
[1741451144586,7.0552,2164.4,2163.7,0.46337519]
[1741451144788,6.1309,2164.4,2163.7,0.46337519]
[1741451145493,6.1309,2164.4,2163.7,0.00692505]
[1741451145494,7.05521,2164.4,2163.7,0.00692505]
[1741451145691,6.1309,2164.4,2163.7,0.00692505]
[1741451145890,3.2078,2163.8,2163.7,0.00692505]
[1741451146596,3.8868,2163.8,2163.7,0.00692505]
[1741451147282,7.8868,2163.8,2162.8,3.2078]
[1741451147489,0.92474,2163.4,2162.5,3.2078]
[1741451147693,3.2078,2163.2,2162.5,4.13291]
[1741451147895,2.9622,2163.1,2162.5,3.2078]
[1741451148086,2.9622,2163.1,2162.6,0.92505]
[1741451148284,2.272,2163.1,2162.5,3.2078]
[1741451148792,0.92453,2163.9,2162.5,3.2078]
[1741451148793,3.2078,2163.5,2163.1,0.92483]
[1741451148988,3.2078,2163.5,2162.7,3.2078]
[1741451149389,3.2078,2163.5,2163.0,0.92489]
[1741451149586,1.8888,2163.6,2163.4,3.2078]
[1741451149887,1.825,2164.0,2163.6,0.92463]
[1741451150085,0.00692505,2163.7,2163.5,2.23834]
[1741451150284,0.00692505,2163.7,2163.5,1.3137]
[1741451150494,0.00692505,2163.7,2163.6,0.92464]
[1741451150997,3.2078,2164.7,2163.5,1.3137]
[1741451151196,2.281,2164.6,2164.0,0.92445]
[1741451151389,2.281,2164.6,2163.9,4.13228]
[1741451151584,2.281,2164.6,2164.0,1.56935]
[1741451151796,2.281,2164.6,2164.1,0.92442]
[1741451151998,3.2078,2164.7,2164.2,3.2078]
[1741451152291,2.282,2165.5,2164.5,3.2078]
[1741451152496,3.2078,2165.3,2164.6,0.6449]
[1741451152796,0.7536,2165.8,2165.2,3.2078]
[1741451153097,0.7536,2165.8,2164.6,1.22146247]
[1741451153098,3.2078,2165.6,2164.7,2.9511]
[1741451153287,3.2078,2165.3,2164.7,0.6611]
[1741451153595,2.291,2165.2,2164.9,0.00692505]
[1741451154513,2.29492505,2165.4,2164.9,3.21472505]
[1741451154892,0.00692505,2165.4,2165.2,0.92394]
[1741451155088,0.00692505,2165.4,2164.9,3.21472505]
[1741451155294,0.00692505,2165.4,2165.1,0.92397]
[1741451155488,0.00692505,2165.4,2165.3,0.92391]
[1741451156389,2.286,2166.1,2165.3,0.7682]
[1741451156390,2.285,2166.1,2165.3,0.7682]
[1741451156587,2.285,2166.1,2165.5,3.2078]
[1741451156791,3.2078,2166.0,2165.5,3.2078]
[1741451157703,3.21472505,2166.0,2165.5,3.2078]
[1741451158101,3.21472505,2166.0,2165.5,4.13162]
[1741451158294,0.00692505,2166.0,2165.5,3.2078]
[1741451158490,3.21472505,2166.0,2165.5,4.13163]
[1741451158696,3.21472505,2166.0,2165.3,0.7682]
[1741451159200,3.21472505,2166.0,2165.3,1.69208]
[1741451159503,3.21472505,2166.0,2165.5,0.92381]
[1741451159801,3.21472505,2166.0,2165.3,0.7682]
[1741451160002,4.13835505,2166.0,2165.3,0.7682]
[1741451160295,3.21472505,2166.0,2165.3,0.7682]
[1741451160496,3.21472505,2166.0,2165.4,0.92387]
[1741451160701,2.282,2165.9,2165.5,3.2078]
[1741451161999,2.282,2165.9,2165.6,0.92376]
[1741451162199,2.282,2165.9,2165.5,3.2078]
[1741451162597,2.282,2165.9,2165.6,0.92376]
[1741451162798,2.282,2165.9,2165.5,3.2078]
[1741451163502,2.282,2165.9,2165.5,4.13162]
[1741451163695,3.21472505,2166.0,2165.6,0.92377]
[1741451163902,2.286,2165.9,2165.5,3.2078]
[1741451164302,2.286,2165.9,2165.4,3.2078]
[1741451164502,2.286,2165.9,2165.5,0.8122]
[1741451164701,2.286,2165.9,2165.5,1.736]
[1741451165001,3.21472505,2166.0,2165.7,3.2078]
[1741451165203,3.2078,2166.3,2165.7,3.2078]
[1741451165509,2.4485,2166.3,2165.8,1.66386]
[1741451165700,2.4485,2166.3,2165.9,0.92364]
[1741451166001,2.284,2166.7,2166.0,3.2078]
[1741451166207,2.284,2166.7,2166.4,0.92344]
[1741451166399,2.17081547,2166.7,2166.4,0.92344]
[1741451166697,2.17081547,2166.7,2166.4,0.57063377]
[1741451166698,0.00449952,2166.6,2166.4,0.57063377]
[1741451166903,0.00449952,2166.6,2166.3,3.21472505]
[1741451167907,0.00449952,2166.6,2166.3,3.79121534]
[1741451168601,2.28,2167.1,2166.7,0.9233]
[1741451168805,2.28,2167.2,2166.7,3.2078]
[1741451169102,5.4878,2167.3,2166.4,3.9718]
[1741451169305,2.2926,2167.2,2166.4,3.9718]
[1741451169605,0.92317,2167.1,2166.4,3.9718]
[1741451169802,2.2926,2167.2,2166.4,3.9718]
[1741451170001,3.21572,2167.2,2166.4,3.9718]
[1741451170198,3.21572,2167.2,2166.4,4.89522]
[1741451170394,3.21572,2167.2,2166.4,3.9718]
[1741451170395,2.2926,2167.2,2166.4,3.9718]
[1741451171007,3.21573,2167.2,2166.4,4.89522]
[1741451171617,2.2926,2167.2,2166.4,3.9718]
[1741451172106,0.92315,2167.1,2166.4,4.89523]
[1741451172307,3.2078,2167.0,2166.4,4.89523]
[1741451172899,4.131,2167.0,2166.4,3.2078]
[1741451173100,3.2078,2166.6,2166.3,0.00692505]
[1741451173308,7.178,2166.5,2166.3,0.00692505]
[1741451173503,8.7592,2166.5,2166.3,0.00692505]
[1741451174505,2.274,2166.4,2166.3,0.00692505]
[1741451175701,3.2078,2166.9,2166.3,0.00692505]
[1741451175906,2.981,2167.3,2166.4,4.13122]
[1741451175907,2.273,2166.8,2166.4,4.13122]
[1741451176114,2.273,2166.8,2166.4,3.952]
[1741451176609,2.273,2166.8,2166.5,0.92339]
[1741451176805,2.273,2166.8,2166.6,0.92334]
[1741451177012,2.273,2166.8,2166.5,0.92339]
[1741451177311,3.41662319,2167.0,2166.6,0.92334]
[1741451177499,5.68762319,2167.0,2166.6,0.92334]
[1741451177702,2.27,2167.1,2166.4,3.952]
[1741451177907,2.271,2167.2,2166.7,4.13109]
[1741451178110,2.271,2167.2,2166.8,1.70205]
[1741451178309,2.271,2167.2,2166.8,0.7788]
[1741451178510,0.781,2167.3,2166.8,0.7788]
[1741451178704,3.41662319,2167.4,2167.0,3.2078]
[1741451179003,3.41662319,2167.4,2167.0,4.13096]
[1741451179204,3.41662319,2167.4,2167.0,3.2078]
[1741451180011,0.92309,2167.3,2167.0,3.2078]
[1741451180308,0.92312,2167.2,2166.6,3.2078]
[1741451180506,2.272,2167.1,2166.6,3.2078]
[1741451180898,0.92322,2167.0,2166.4,1.5422]
[1741451181104,3.41662319,2167.0,2166.4,1.5422]
[1741451181306,3.2078,2166.8,2166.3,0.00692505]
[1741451181504,0.92344,2166.4,2166.3,0.00692505]
[1741451181801,0.92351,2166.3,2165.8,3.2078]
[1741451182005,2.271,2166.2,2165.8,3.2078]
[1741451183012,2.271,2166.2,2165.8,3.21472505]
[1741451183013,2.27792505,2166.2,2165.8,3.21472505]
[1741451183812,8.90234824,2166.2,2165.8,0.00692505]
[1741451184117,3.2078,2165.9,2165.8,0.00692505]
[1741451185712,4.13146,2165.9,2165.8,0.00692505]
[1741451186109,3.2078,2165.9,2165.8,0.00692505]
[1741451186311,3.41662319,2166.1,2165.8,3.21472505]
[1741451186512,5.68462319,2166.1,2165.8,0.00692505]
[1741451186809,0.92364,2166.0,2165.8,0.00692505]
[1741451187016,0.92366,2165.9,2165.8,0.00692505]
[1741451188708,4.92366,2165.9,2165.8,0.00692505]
[1741451188908,0.92376,2165.7,2165.4,3.2078]
[1741451189108,3.19076,2165.7,2165.4,3.2078]
[1741451189913,2.267,2165.7,2165.4,3.2078]
[1741451190713,6.62442319,2166.0,2165.4,3.2078]
[1741451190907,2.261,2165.9,2165.4,3.2078]
[1741451191109,3.41662319,2166.0,2165.4,4.1116]
[1741451191416,3.41662319,2166.0,2165.7,3.2078]
[1741451191619,3.41662319,2166.0,2165.8,0.8755]
[1741451192316,4.34025319,2166.0,2165.8,0.8755]
[1741451192718,0.92366,2165.9,2165.8,0.8755]
[1741451193015,3.2078,2166.0,2165.4,4.1116]
[1741451193417,0.92379,2165.6,2165.4,4.1116]
[1741451193809,0.92377,2165.7,2165.4,4.1116]
[1741451194012,0.92379,2165.6,2165.4,3.2078]
[1741451194217,0.92383,2165.5,2165.3,1.46671073]
[1741451194606,3.2078,2165.7,2165.3,1.46671073]
[1741451194810,0.92379,2165.6,2165.3,1.46671073]
[1741451195012,0.92382,2165.6,2165.3,1.46671073]
[1741451195419,0.92386,2165.5,2165.3,1.46671073]
[1741451195923,3.2078,2165.7,2165.3,1.46671073]
[1741451196116,0.92387,2165.5,2165.3,1.46671073]
[1741451196317,0.92382,2165.6,2165.3,1.46671073]
[1741451196526,1.60545219,2165.8,2165.5,3.2078]
[1741451196813,1.24076438,2165.8,2165.5,3.2078]
[1741451197516,2.16446438,2165.8,2165.5,3.2078]
[1741451197714,1.24076438,2165.8,2165.5,3.2078]
[1741451197915,1.24076438,2165.8,2165.6,0.8731]
[1741451198118,0.92387,2165.4,2165.3,0.88242505]
[1741451198421,0.92404,2165.0,2164.9,4.0809]
[1741451198618,3.2078,2165.1,2164.6,0.8932]
[1741451199218,3.2078,2165.1,2164.6,1.46591881]
[1741451199524,2.251,2165.0,2164.6,0.90012505]
[1741451199711,0.92417,2164.7,2164.6,0.90012505]
[1741451199911,0.92417,2164.7,2164.6,0.00692505]
[1741451201120,3.2078,2164.8,2164.6,0.00692505]
[1741451201121,0.92415,2164.8,2164.6,0.00692505]
[1741451201322,0.92417,2164.7,2164.6,0.00692505]
[1741451201719,0.00692505,2165.1,2164.6,3.21472505]
[1741451201917,2.26092505,2165.1,2164.6,3.21472505]
[1741451202318,3.18494505,2165.1,2164.6,3.21472505]
[1741451202518,5.46872505,2165.1,2164.6,0.00692505]
[1741451202720,0.92417,2164.7,2164.6,0.00692505]
[1741451203019,6.61279319,2164.7,2164.6,0.00692505]
[1741451203220,6.61279319,2164.7,2163.8,0.9149]
[1741451203221,0.92441,2164.2,2163.8,0.9149]
[1741451203421,2.276,2164.3,2163.8,0.9149]
[1741451203618,2.277,2164.3,2163.8,0.9149]
[1741451203825,0.9244,2164.2,2163.8,0.9149]
[1741451204128,0.92444,2164.1,2163.8,1.49243495]
[1741451204321,2.277,2164.3,2163.8,1.49243495]
[1741451204322,0.92441,2164.2,2163.8,1.49936]
[1741451204515,2.277,2164.3,2163.8,1.49936]
[1741451204720,0.92441,2164.2,2163.8,1.49936]
[1741451205225,5.69362319,2164.6,2164.0,3.2078]
[1741451205924,5.69462319,2164.6,2164.0,3.2078]
[1741451206225,6.61884319,2164.6,2164.0,3.2078]
[1741451206424,5.69462319,2164.6,2164.0,3.2078]
[1741451207219,0.92425,2164.5,2164.0,3.2078]
[1741451207417,3.41662319,2164.5,2164.0,3.2078]
[1741451207619,0.92447,2164.0,2163.8,0.92182505]
[1741451207822,0.92451,2163.9,2163.8,0.00692505]
[1741451208021,3.41662319,2163.9,2163.0,4.9907]
[1741451208332,0.92471,2163.5,2163.0,4.9907]
[1741451208522,3.2078,2163.7,2163.0,4.9907]
[1741451208723,0.92473,2163.4,2163.0,5.51593092]
[1741451209026,0.925,2162.8,2162.5,0.09248554]
[1741451209229,0.92507,2162.6,2162.5,0.09248554]
[1741451209435,2.301,2163.0,2162.5,0.09248554]
[1741451209623,0.925,2162.8,2162.5,0.09248554]
[1741451210123,0.92507,2162.6,2162.5,0.09248554]
[1741451210328,2.299,2162.6,2162.5,0.09248554]
[1741451210826,3.41662319,2163.0,2162.5,0.09248554]
[1741451210827,2.301,2162.9,2162.5,0.95768554]
[1741451211020,3.22594,2162.9,2162.5,0.95768554]
[1741451211217,2.301,2162.9,2162.6,3.2078]
[1741451211932,3.22596,2162.9,2162.6,3.2078]
[1741451212628,2.301,2162.9,2162.6,3.2078]
[1741451212824,3.22594,2162.9,2162.6,3.2078]
[1741451213731,2.301,2162.9,2162.6,3.2078]
[1741451213931,0.92507,2162.6,2162.5,0.95768554]
[1741451214229,4.13287,2162.6,2162.5,0.09248554]
[1741451214527,0.92507,2162.6,2162.5,0.09248554]
[1741451215228,4.13287,2162.6,2162.5,0.09248554]
[1741451215532,3.2078,2162.6,2161.7,3.2078]
[1741451215733,2.293,2162.5,2161.7,3.2078]
[1741451215933,2.293,2162.5,2161.8,4.13319]
[1741451216230,3.8965,2163.0,2161.8,4.13319]
[1741451216231,3.2078,2163.3,2162.7,0.92499]
[1741451216431,3.2078,2163.6,2162.8,2.0142]
[1741451216728,0.93174505,2163.2,2162.8,2.01881667]
[1741451217028,0.00692505,2163.2,2162.8,2.01881667]
[1741451217233,3.21472505,2163.2,2162.8,1.01361667]
[1741451217426,4.13955505,2163.2,2162.8,0.00461667]
[1741451217731,3.21472505,2163.2,2162.8,0.00461667]
[1741451217936,0.92488,2163.1,2162.8,0.00461667]
[1741451219025,2.311,2163.1,2162.8,0.00461667]
[1741451219226,3.2078,2162.9,2161.6,3.2078]
[1741451219422,4.13307,2162.2,2161.8,3.2078]
[1741451219621,2.332,2162.1,2161.9,3.2078]
[1741451219827,2.334,2162.3,2161.9,4.13315]
[1741451220138,2.334,2162.4,2162.0,3.2078]
[1741451220335,4.34165319,2162.7,2162.2,4.13301]
[1741451220336,0.00692505,2162.3,2162.2,4.13301]
[1741451220838,0.00692505,2162.3,2162.2,11.34081]
[1741451221040,0.00692505,2162.3,2162.2,12.32751]
[1741451221426,3.2078,2162.9,2162.5,0.92509]
[1741451221633,2.333,2163.2,2162.8,3.2078]
[1741451222136,2.333,2163.2,2162.9,4.1222]
[1741451222636,0.00692505,2163.3,2163.0,3.2078]
[1741451223134,5.34922319,2163.8,2162.9,0.9144]
[1741451223135,5.5398,2164.1,2163.2,3.2078]
[1741451223340,6.46424,2164.1,2163.3,3.2078]
[1741451223632,3.2078,2163.9,2163.3,3.2078]
[1741451223834,4.13233,2163.9,2163.4,3.2078]
[1741451224034,0.92457,2163.8,2163.1,3.2078]
[1741451224237,3.2078,2163.9,2163.1,3.2078]
[1741451224434,0.00692505,2163.7,2163.3,3.2078]
[1741451224832,0.00692505,2163.7,2163.4,3.2078]
[1741451225138,0.00692505,2163.7,2163.5,0.9581]
[1741451225338,0.00692505,2163.7,2163.5,4.1659]
[1741451225542,0.00692505,2163.7,2163.6,3.2078]
[1741451227434,0.00692505,2163.7,2163.3,3.2078]
[1741451227638,0.00692505,2163.7,2163.4,3.2078]
[1741451227842,0.00692505,2163.7,2163.3,3.2078]
[1741451228039,0.00692505,2163.7,2163.4,3.2078]
[1741451228543,0.00692505,2163.7,2163.5,3.2078]
[1741451228743,0.00692505,2163.7,2163.4,3.2078]
[1741451229238,0.00692505,2163.7,2163.6,4.13244]
[1741451229538,0.00692505,2163.7,2163.6,3.2078]
[1741451229835,0.00692505,2163.7,2163.6,7.34024]
[1741451230240,5.5398,2164.3,2163.8,0.92452]
[1741451230443,5.5398,2164.3,2163.9,4.13229]
[1741451230635,3.2078,2164.3,2163.9,4.13229]
[1741451230835,0.9468,2164.6,2164.0,3.2078]
[1741451231040,3.2078,2164.7,2164.2,3.2078]
[1741451231041,5.5408,2164.7,2164.2,3.2078]
[1741451231237,5.54772505,2164.7,2164.3,1.9448]
[1741451231445,0.00692505,2164.7,2164.6,3.2078]
[1741451231742,3.2078,2165.2,2164.6,3.75501812]
[1741451231932,0.96,2165.4,2164.9,0.92405]
[1741451231933,2.334,2165.4,2164.9,0.92405]
[1741451232130,2.334,2165.4,2164.7,3.2078]
[1741451232337,3.2078,2165.2,2164.8,3.2078]
[1741451232638,3.2078,2165.2,2164.7,3.2078]
[1741451232841,3.2078,2164.9,2164.4,3.2078]
[1741451233142,2.337,2164.9,2164.4,4.1321]
[1741451233339,2.337,2164.9,2164.5,3.2078]
[1741451233542,2.337,2164.9,2164.4,3.2078]
[1741451233944,2.337,2164.9,2164.5,4.13203]
[1741451234142,2.337,2164.9,2164.4,3.2078]
[1741451234541,2.337,2164.9,2164.5,3.2078]
[1741451234847,2.337,2164.9,2164.4,4.13209]
[1741451235346,2.337,2164.9,2164.5,3.2078]
[1741451235547,0.96,2165.1,2164.5,3.2078]
[1741451235848,2.331,2165.1,2164.6,3.2078]
[1741451236043,2.331,2165.1,2164.7,4.13193]
[1741451236239,2.331,2165.1,2164.7,3.2078]
[1741451236440,2.331,2165.1,2164.8,3.2078]
[1741451236937,0.00692505,2165.2,2164.9,3.2078]
[1741451237136,0.00692505,2165.2,2164.8,4.1319]
[1741451237339,0.00692505,2165.2,2164.8,3.2078]
[1741451237534,0.00692505,2165.2,2165.1,0.924]
[1741451237942,0.00692505,2165.2,2165.1,4.1318]
[1741451239036,4.121,2165.8,2165.1,3.2078]
[1741451239240,4.121,2165.8,2164.9,1.9948]
[1741451239241,3.2412,2165.8,2165.4,3.2078]
[1741451239644,0.9707,2165.9,2165.4,6.4156]
[1741451239645,3.2977,2165.9,2165.4,6.4156]
[1741451239945,3.2977,2165.9,2165.4,3.2078]
[1741451239946,3.2078,2165.7,2165.4,3.2078]
[1741451240250,3.2078,2165.7,2164.9,1.9948]
[1741451240251,0.92382,2165.6,2165.3,0.00692505]
[1741451240453,3.25184,2165.5,2165.3,0.00692505]
[1741451240747,3.2078,2165.4,2165.3,0.00692505]
[1741451241046,3.2078,2165.4,2164.4,3.25226]
[1741451241047,0.92398,2165.2,2164.4,3.25226]
[1741451241354,0.92407,2165.0,2164.5,3.2078]